[Event "*** SCC Grand Prix: Titled Tuesday Blitz"]
[Site "Chess.com"]
[Date "2020.09.08"]
[Round "1"]
[White "Pikachess999"]
[Black "Sanan_Sjugirov"]
[Result "0-1"]
[WhiteElo "2417"]
[BlackElo "2832"]
[TimeControl "180+1"]
[EndTime "10:06:31 PDT"]
[Termination "Sanan_Sjugirov won by resignation"]

1. e4 {[%clk 0:02:57.6]} 1... c5 {[%clk 0:02:59.3]} 2. a3 {[%clk 0:02:57.4]}
2... g6 {[%clk 0:02:55]} 3. h4 {[%clk 0:02:56.6]} 3... h5 {[%clk 0:02:52.7]} 4.
d4 {[%clk 0:02:52.8]} 4... cxd4 {[%clk 0:02:50.8]} 5. Nf3 {[%clk 0:02:53.4]}
5... Bg7 {[%clk 0:02:48.3]} 6. Nxd4 {[%clk 0:02:53.4]} 6... Nc6 {[%clk
0:02:45.9]} 7. Be3 {[%clk 0:02:53.5]} 7... Nf6 {[%clk 0:02:43.1]} 8. Nc3 {[%clk
0:02:53.4]} 8... Ng4 {[%clk 0:02:41.5]} 9. Nxc6 {[%clk 0:02:49]} 9... bxc6
{[%clk 0:02:41.2]} 10. Bd4 {[%clk 0:02:45.5]} 10... O-O {[%clk 0:01:58.7]} 11.
f3 {[%clk 0:02:40]} 11... Nf6 {[%clk 0:01:49.3]} 12. Bc4 {[%clk 0:02:21.1]}
12... d5 {[%clk 0:01:39]} 13. exd5 {[%clk 0:02:17.8]} 13... cxd5 {[%clk
0:01:39.2]} 14. Bxf6 {[%clk 0:02:06.4]} 14... Bxf6 {[%clk 0:01:36.3]} 15. Qxd5
{[%clk 0:01:51.4]} 15... Qb6 {[%clk 0:01:27.5]} 16. O-O-O {[%clk 0:00:59.7]}
16... Rb8 {[%clk 0:01:14]} 17. Na4 {[%clk 0:00:44]} 17... Qc7 {[%clk 0:00:51.4]}
18. Rhe1 {[%clk 0:00:26.9]} 18... Bf5 {[%clk 0:00:46.3]} 19. b4 {[%clk
0:00:17.4]} 19... e6 {[%clk 0:00:33.7]} 20. Qc5 {[%clk 0:00:17]} 20... Qf4+
{[%clk 0:00:33.9]} 21. Kb1 {[%clk 0:00:16.6]} 21... Rfc8 {[%clk 0:00:34]} 22.
Qxa7 {[%clk 0:00:07.7]} 22... Qxc4 {[%clk 0:00:31.1]} 23. Rd2 {[%clk 0:00:06]}
23... Bxc2+ {[%clk 0:00:29.7]} 24. Kc1 {[%clk 0:00:06.2]} 24... Bxa4+ {[%clk
0:00:28.6]} 0-1

[Event "*** SCC Grand Prix: Titled Tuesday Blitz"]
[Site "Chess.com"]
[Date "2020.09.08"]
[Round "1"]
[White "annacramling"]
[Black "KonstantinB_1983"]
[Result "0-1"]
[WhiteElo "2123"]
[BlackElo "2513"]
[TimeControl "180+1"]
[EndTime "10:06:35 PDT"]
[Termination "KonstantinB_1983 won by checkmate"]

1. d4 {[%clk 0:02:55.9]} 1... Nf6 {[%clk 0:02:58.4]} 2. c4 {[%clk 0:02:52.3]}
2... b6 {[%clk 0:02:58.4]} 3. Nc3 {[%clk 0:02:52.1]} 3... Bb7 {[%clk 0:02:58.3]}
4. Qc2 {[%clk 0:02:47.9]} 4... d5 {[%clk 0:02:54.9]} 5. cxd5 {[%clk 0:02:47.9]}
5... Nxd5 {[%clk 0:02:53.9]} 6. e4 {[%clk 0:02:48.3]} 6... Nxc3 {[%clk
0:02:53.1]} 7. bxc3 {[%clk 0:02:48.4]} 7... e5 {[%clk 0:02:52]} 8. Nf3 {[%clk
0:02:46]} 8... exd4 {[%clk 0:02:49.8]} 9. cxd4 {[%clk 0:02:46.9]} 9... Bb4+
{[%clk 0:02:48.7]} 10. Bd2 {[%clk 0:02:46.9]} 10... Bxd2+ {[%clk 0:02:47.5]} 11.
Qxd2 {[%clk 0:02:47.8]} 11... Bxe4 {[%clk 0:02:44.4]} 12. Qe3 {[%clk 0:02:45.6]}
12... Qe7 {[%clk 0:02:42.6]} 13. Ne5 {[%clk 0:02:40.2]} 13... Qb4+ {[%clk
0:02:29.7]} 14. Qd2 {[%clk 0:02:37.6]} 14... Qxd2+ {[%clk 0:02:28]} 15. Kxd2
{[%clk 0:02:38.5]} 15... O-O {[%clk 0:02:26.1]} 16. f3 {[%clk 0:02:38.4]} 16...
Bb7 {[%clk 0:02:20.7]} 17. Bc4 {[%clk 0:02:38]} 17... Nc6 {[%clk 0:02:13.3]} 18.
Bd5 {[%clk 0:02:02.6]} 18... Nxe5 {[%clk 0:02:04.7]} 19. Bxb7 {[%clk 0:02:01]}
19... Rab8 {[%clk 0:01:52.2]} 20. Be4 {[%clk 0:02:00.8]} 20... Rfd8 {[%clk
0:01:42.8]} 21. Kc3 {[%clk 0:01:23.8]} 21... Nd7 {[%clk 0:01:40.7]} 22. Rhd1
{[%clk 0:01:21]} 22... c5 {[%clk 0:01:31.2]} 23. d5 {[%clk 0:01:01.4]} 23... Nf6
{[%clk 0:01:29.7]} 24. a4 {[%clk 0:00:56.4]} 24... Rd6 {[%clk 0:01:26.5]} 25.
Kc4 {[%clk 0:00:52.4]} 25... Nd7 {[%clk 0:01:19.3]} 26. f4 {[%clk 0:00:50.5]}
26... g6 {[%clk 0:01:17.8]} 27. Rab1 {[%clk 0:00:39.9]} 27... Re8 {[%clk
0:01:16.3]} 28. Bf3 {[%clk 0:00:38.5]} 28... Re3 {[%clk 0:01:14.9]} 29. Rb3
{[%clk 0:00:30.3]} 29... Rxb3 {[%clk 0:01:11.2]} 30. Kxb3 {[%clk 0:00:31.1]}
30... Kf8 {[%clk 0:01:06.4]} 31. Kc4 {[%clk 0:00:31.3]} 31... Ke7 {[%clk
0:01:06.3]} 32. Kb5 {[%clk 0:00:20.5]} 32... Nb8 {[%clk 0:01:04.5]} 33. g4
{[%clk 0:00:16]} 33... Rf6 {[%clk 0:00:59.2]} 34. Bg2 {[%clk 0:00:06.8]} 34...
Rxf4 {[%clk 0:00:57.6]} 35. d6+ {[%clk 0:00:06]} 35... Kd7 {[%clk 0:00:55.2]}
36. g5 {[%clk 0:00:05.9]} 36... Rb4# {[%clk 0:00:53.8]} 0-1

[Event "*** SCC Grand Prix: Titled Tuesday Blitz"]
[Site "Chess.com"]
[Date "2020.09.08"]
[Round "1"]
[White "sodastream007"]
[Black "artichaud"]
[Result "1/2-1/2"]
[WhiteElo "2546"]
[BlackElo "2225"]
[TimeControl "180+1"]
[EndTime "10:06:38 PDT"]
[Termination "Game drawn by repetition"]

1. d4 {[%clk 0:03:00.9]} 1... d6 {[%clk 0:02:59.7]} 2. e4 {[%clk 0:03:00.1]}
2... Nf6 {[%clk 0:02:59.2]} 3. Nc3 {[%clk 0:03:00.1]} 3... b6 {[%clk 0:02:59.6]}
4. Nf3 {[%clk 0:02:58.4]} 4... Bb7 {[%clk 0:02:59.1]} 5. Bd3 {[%clk 0:02:58.5]}
5... e6 {[%clk 0:02:53.2]} 6. O-O {[%clk 0:02:56.7]} 6... Be7 {[%clk 0:02:53.1]}
7. Qe2 {[%clk 0:02:54.2]} 7... O-O {[%clk 0:02:47.8]} 8. Rd1 {[%clk 0:02:53.2]}
8... Nbd7 {[%clk 0:02:43.9]} 9. e5 {[%clk 0:02:49.7]} 9... Nd5 {[%clk
0:02:42.2]} 10. Nxd5 {[%clk 0:02:48.5]} 10... Bxd5 {[%clk 0:02:39.7]} 11. Bf4
{[%clk 0:02:45.8]} 11... dxe5 {[%clk 0:02:32]} 12. dxe5 {[%clk 0:02:45]} 12...
Qc8 {[%clk 0:02:19.6]} 13. Ba6 {[%clk 0:02:37.1]} 13... Qe8 {[%clk 0:02:16.5]}
14. Bb5 {[%clk 0:02:18.3]} 14... c6 {[%clk 0:02:11.7]} 15. Bd3 {[%clk
0:02:17.9]} 15... Nc5 {[%clk 0:02:09.6]} 16. c4 {[%clk 0:02:17.6]} 16... Nxd3
{[%clk 0:01:53.6]} 17. Rxd3 {[%clk 0:02:18.5]} 17... Bxc4 {[%clk 0:01:49.7]} 18.
Ng5 {[%clk 0:01:31.6]} 18... Bxd3 {[%clk 0:01:40.8]} 19. Qxd3 {[%clk 0:01:32.5]}
19... Bxg5 {[%clk 0:01:39.6]} 20. Bxg5 {[%clk 0:01:33.1]} 20... h6 {[%clk
0:01:37.6]} 21. Bf6 {[%clk 0:01:30.9]} 21... gxf6 {[%clk 0:01:19]} 22. exf6
{[%clk 0:01:31.8]} 22... Qb8 {[%clk 0:00:55.8]} 23. Qe3 {[%clk 0:01:20.8]} 23...
Kh7 {[%clk 0:00:36.8]} 24. Qe4+ {[%clk 0:01:19.2]} 24... Kh8 {[%clk 0:00:35.4]}
25. Qe3 {[%clk 0:01:12.1]} 25... Kh7 {[%clk 0:00:32.8]} 26. Rd1 {[%clk 0:01:05]}
26... Rg8 {[%clk 0:00:25.9]} 27. Rd7 {[%clk 0:01:02.4]} 27... Qe8 {[%clk
0:00:22.5]} 28. Qd2 {[%clk 0:00:58.3]} 28... Rd8 {[%clk 0:00:17.9]} 29. Qd3+
{[%clk 0:00:57.5]} 29... Kh8 {[%clk 0:00:14.8]} 30. Qd2 {[%clk 0:00:54.8]} 30...
Kh7 {[%clk 0:00:09.8]} 31. Qd3+ {[%clk 0:00:53.6]} 31... Kh8 {[%clk 0:00:08.1]}
32. Qd2 {[%clk 0:00:40.2]} 32... Kh7 {[%clk 0:00:06.8]} 1/2-1/2

[Event "*** SCC Grand Prix: Titled Tuesday Blitz"]
[Site "Chess.com"]
[Date "2020.09.08"]
[Round "1"]
[White "Taron_Shagbazyan"]
[Black "Tactictic"]
[Result "1-0"]
[WhiteElo "2680"]
[BlackElo "2345"]
[TimeControl "180+1"]
[EndTime "10:06:41 PDT"]
[Termination "Taron_Shagbazyan won by resignation"]

1. d4 {[%clk 0:02:58.4]} 1... Nf6 {[%clk 0:02:58.9]} 2. c4 {[%clk 0:02:57.6]}
2... e6 {[%clk 0:02:58.6]} 3. Nc3 {[%clk 0:02:55.4]} 3... d5 {[%clk 0:02:58.9]}
4. cxd5 {[%clk 0:02:54.8]} 4... exd5 {[%clk 0:02:59.8]} 5. Bg5 {[%clk
0:02:45.3]} 5... Nbd7 {[%clk 0:02:59.2]} 6. e3 {[%clk 0:02:45]} 6... c6 {[%clk
0:02:58.8]} 7. Bd3 {[%clk 0:02:40.2]} 7... Be7 {[%clk 0:02:58.6]} 8. Nge2 {[%clk
0:02:40.4]} 8... h6 {[%clk 0:02:57.3]} 9. Bh4 {[%clk 0:02:39.7]} 9... Nh5 {[%clk
0:02:57.2]} 10. Bxe7 {[%clk 0:02:39.3]} 10... Qxe7 {[%clk 0:02:58.1]} 11. O-O
{[%clk 0:02:40]} 11... O-O {[%clk 0:02:56.4]} 12. Qd2 {[%clk 0:02:39.7]} 12...
Nb6 {[%clk 0:02:55.4]} 13. Rae1 {[%clk 0:02:39]} 13... Bd7 {[%clk 0:02:53.7]}
14. f3 {[%clk 0:02:39.4]} 14... f5 {[%clk 0:02:37.1]} 15. Nf4 {[%clk 0:02:36.7]}
15... Nxf4 {[%clk 0:01:52.3]} 16. exf4 {[%clk 0:02:37.6]} 16... Qf6 {[%clk
0:01:51.9]} 17. Re5 {[%clk 0:02:37.1]} 17... Rae8 {[%clk 0:01:45.3]} 18. Rfe1
{[%clk 0:02:37]} 18... Re6 {[%clk 0:01:45]} 19. b3 {[%clk 0:02:24.5]} 19... g6
{[%clk 0:01:32.1]} 20. Nd1 {[%clk 0:02:03.1]} 20... Rfe8 {[%clk 0:01:25.3]} 21.
Nf2 {[%clk 0:02:01.8]} 21... Bc8 {[%clk 0:01:12.5]} 22. g4 {[%clk 0:01:59.8]}
22... Nd7 {[%clk 0:01:01.6]} 23. Rxe6 {[%clk 0:01:46]} 23... Rxe6 {[%clk
0:01:02.5]} 24. gxf5 {[%clk 0:01:36.6]} 24... gxf5 {[%clk 0:00:54.6]} 25. Rxe6
{[%clk 0:01:36.1]} 25... Qxe6 {[%clk 0:00:55.5]} 26. Bf1 {[%clk 0:01:33.1]}
26... Nf8 {[%clk 0:00:48.9]} 27. Nd3 {[%clk 0:01:32.8]} 27... Qf6 {[%clk
0:00:20]} 28. Ne5 {[%clk 0:01:30.4]} 28... Ne6 {[%clk 0:00:20.6]} 29. Bh3 {[%clk
0:01:18.9]} 29... Kf8 {[%clk 0:00:20.4]} 30. Qb4+ {[%clk 0:01:10.8]} 30... Kg7
{[%clk 0:00:15.6]} 31. Qd6 {[%clk 0:01:01.2]} 31... Qh4 {[%clk 0:00:03.3]} 32.
Bf1 {[%clk 0:00:51.8]} 32... Nxf4 {[%clk 0:00:02.1]} 33. Qc7+ {[%clk 0:00:48.4]}
33... Kf6 {[%clk 0:00:02.4]} 34. Qd8+ {[%clk 0:00:44.4]} 1-0

[Event "*** SCC Grand Prix: Titled Tuesday Blitz"]
[Site "Chess.com"]
[Date "2020.09.08"]
[Round "1"]
[White "QuintilianoR"]
[Black "champ1000"]
[Result "1-0"]
[WhiteElo "2619"]
[BlackElo "2298"]
[TimeControl "180+1"]
[EndTime "10:06:43 PDT"]
[Termination "QuintilianoR won by resignation"]

1. e4 {[%clk 0:03:00.8]} 1... e5 {[%clk 0:02:59.1]} 2. Nf3 {[%clk 0:03:01.2]}
2... Nc6 {[%clk 0:02:59.1]} 3. Bc4 {[%clk 0:03:01.2]} 3... Bc5 {[%clk
0:02:58.6]} 4. O-O {[%clk 0:03:00.9]} 4... Nf6 {[%clk 0:02:59]} 5. d3 {[%clk
0:03:00.5]} 5... O-O {[%clk 0:02:57.7]} 6. h3 {[%clk 0:02:58.2]} 6... a6 {[%clk
0:02:52]} 7. c3 {[%clk 0:02:55.1]} 7... d6 {[%clk 0:02:45]} 8. Bb3 {[%clk
0:02:53.1]} 8... h6 {[%clk 0:02:40.7]} 9. Re1 {[%clk 0:02:51.9]} 9... Ba7 {[%clk
0:02:35]} 10. Nbd2 {[%clk 0:02:51]} 10... Ne7 {[%clk 0:02:32.4]} 11. Nf1 {[%clk
0:02:50.1]} 11... Ng6 {[%clk 0:02:29.7]} 12. Ng3 {[%clk 0:02:43.3]} 12... c6
{[%clk 0:02:28.7]} 13. d4 {[%clk 0:02:37.5]} 13... Qc7 {[%clk 0:02:19.6]} 14.
Be3 {[%clk 0:02:35.6]} 14... Re8 {[%clk 0:02:15]} 15. Qd2 {[%clk 0:02:17.3]}
15... Be6 {[%clk 0:01:50.2]} 16. Bc2 {[%clk 0:02:10.2]} 16... Rad8 {[%clk
0:01:06.1]} 17. Rad1 {[%clk 0:01:24.3]} 17... d5 {[%clk 0:00:21]} 18. Nxe5
{[%clk 0:00:15.2]} 18... Nxe5 {[%clk 0:00:20.4]} 19. dxe5 {[%clk 0:00:15.4]}
19... Nxe4 {[%clk 0:00:20.9]} 20. Nxe4 {[%clk 0:00:13.1]} 20... dxe4 {[%clk
0:00:21.2]} 21. Qe2 {[%clk 0:00:13.3]} 21... Bxe3 {[%clk 0:00:18.4]} 22. Qxe3
{[%clk 0:00:14.2]} 22... Qxe5 {[%clk 0:00:18.1]} 23. Rxd8 {[%clk 0:00:13.1]}
23... Rxd8 {[%clk 0:00:18.5]} 24. Bxe4 {[%clk 0:00:14]} 24... Bd5 {[%clk
0:00:13.7]} 25. Bh7+ {[%clk 0:00:13.7]} 1-0

[Event "*** SCC Grand Prix: Titled Tuesday Blitz"]
[Site "Chess.com"]
[Date "2020.09.08"]
[Round "1"]
[White "maxip32"]
[Black "MikaelyanArman"]
[Result "0-1"]
[WhiteElo "2380"]
[BlackElo "2741"]
[TimeControl "180+1"]
[EndTime "10:06:44 PDT"]
[Termination "MikaelyanArman won on time"]

1. e4 {[%clk 0:02:58.9]} 1... e5 {[%clk 0:02:59.4]} 2. Nf3 {[%clk 0:02:58.3]}
2... Nc6 {[%clk 0:02:59.6]} 3. Bc4 {[%clk 0:02:58.2]} 3... Bc5 {[%clk
0:02:59.2]} 4. O-O {[%clk 0:02:57.8]} 4... d6 {[%clk 0:02:58]} 5. d3 {[%clk
0:02:57.9]} 5... Nf6 {[%clk 0:02:57.7]} 6. c3 {[%clk 0:02:58]} 6... a6 {[%clk
0:02:54.1]} 7. a4 {[%clk 0:02:57.5]} 7... Ba7 {[%clk 0:02:52.7]} 8. Na3 {[%clk
0:02:57.3]} 8... O-O {[%clk 0:02:42.5]} 9. Nc2 {[%clk 0:02:56.5]} 9... Ne7
{[%clk 0:02:37]} 10. Be3 {[%clk 0:02:53.4]} 10... Bxe3 {[%clk 0:02:33.5]} 11.
Nxe3 {[%clk 0:02:53.8]} 11... Ng6 {[%clk 0:02:34]} 12. Re1 {[%clk 0:02:50.5]}
12... c6 {[%clk 0:02:34]} 13. Bb3 {[%clk 0:02:25.5]} 13... Be6 {[%clk
0:02:32.8]} 14. Bc2 {[%clk 0:02:14.7]} 14... d5 {[%clk 0:02:26.8]} 15. exd5
{[%clk 0:02:15.6]} 15... cxd5 {[%clk 0:02:26.9]} 16. d4 {[%clk 0:01:34.9]} 16...
e4 {[%clk 0:02:26.8]} 17. Ne5 {[%clk 0:01:34.9]} 17... Qd6 {[%clk 0:02:26.3]}
18. Nxg6 {[%clk 0:01:33.5]} 18... fxg6 {[%clk 0:02:24.7]} 19. Qe2 {[%clk
0:01:11.8]} 19... Rf7 {[%clk 0:02:19.3]} 20. Rf1 {[%clk 0:01:10.7]} 20... Raf8
{[%clk 0:02:19]} 21. f3 {[%clk 0:01:09.4]} 21... exf3 {[%clk 0:02:01.6]} 22.
Rxf3 {[%clk 0:01:07]} 22... Re7 {[%clk 0:01:54.7]} 23. Qf2 {[%clk 0:00:45]}
23... Rfe8 {[%clk 0:01:52.8]} 24. h3 {[%clk 0:00:43.9]} 24... Bd7 {[%clk
0:01:50.1]} 25. Rf1 {[%clk 0:00:33.1]} 25... a5 {[%clk 0:01:41.1]} 26. Bd3
{[%clk 0:00:15.7]} 26... b6 {[%clk 0:01:25.2]} 27. b3 {[%clk 0:00:15.8]} 27...
Be6 {[%clk 0:00:55.2]} 28. Rb1 {[%clk 0:00:13.5]} 28... Rc8 {[%clk 0:00:53.6]}
29. Qd2 {[%clk 0:00:12.8]} 29... Rec7 {[%clk 0:00:49.6]} 30. Rc1 {[%clk
0:00:11.8]} 30... Qa3 {[%clk 0:00:47.5]} 31. Rb1 {[%clk 0:00:01.5]} 31... Rxc3
{[%clk 0:00:41.4]} 32. Bc4 {[%clk 0:00:01.6]} 32... Ne4 {[%clk 0:00:39.1]} 0-1

[Event "*** SCC Grand Prix: Titled Tuesday Blitz"]
[Site "Chess.com"]
[Date "2020.09.08"]
[Round "1"]
[White "elohunter1999"]
[Black "Oleksandr_Bortnyk"]
[Result "0-1"]
[WhiteElo "2455"]
[BlackElo "2929"]
[TimeControl "180+1"]
[EndTime "10:06:47 PDT"]
[Termination "Oleksandr_Bortnyk won on time"]

1. e4 {[%clk 0:03:00.9]} 1... Nf6 {[%clk 0:02:59]} 2. e5 {[%clk 0:03:01]} 2...
Nd5 {[%clk 0:02:59]} 3. d4 {[%clk 0:03:01.7]} 3... d6 {[%clk 0:02:59.4]} 4. Nf3
{[%clk 0:03:02.3]} 4... dxe5 {[%clk 0:02:59.8]} 5. Nxe5 {[%clk 0:03:02.2]} 5...
c6 {[%clk 0:03:00.1]} 6. Be2 {[%clk 0:03:01.2]} 6... Bf5 {[%clk 0:03:00.1]} 7.
O-O {[%clk 0:02:57.7]} 7... Nd7 {[%clk 0:03:00]} 8. Nf3 {[%clk 0:02:54.4]} 8...
e6 {[%clk 0:03:00.2]} 9. c4 {[%clk 0:02:39.9]} 9... N5f6 {[%clk 0:02:59.6]} 10.
Nc3 {[%clk 0:02:39.1]} 10... Bd6 {[%clk 0:02:57.9]} 11. Nh4 {[%clk 0:02:11.5]}
11... Bg6 {[%clk 0:02:55.8]} 12. g3 {[%clk 0:02:09.7]} 12... O-O {[%clk
0:02:45]} 13. Nxg6 {[%clk 0:02:08.6]} 13... hxg6 {[%clk 0:02:45.9]} 14. Bf3
{[%clk 0:02:00.6]} 14... e5 {[%clk 0:02:39.6]} 15. d5 {[%clk 0:01:49.2]} 15...
Qc7 {[%clk 0:02:38.7]} 16. Bg5 {[%clk 0:01:41.1]} 16... Rfe8 {[%clk 0:02:33.1]}
17. Re1 {[%clk 0:01:20.9]} 17... Bc5 {[%clk 0:02:29.9]} 18. Qd2 {[%clk
0:01:19.1]} 18... a5 {[%clk 0:02:23.4]} 19. Rad1 {[%clk 0:01:18.6]} 19... Bd4
{[%clk 0:01:55.8]} 20. Be3 {[%clk 0:01:12.2]} 20... c5 {[%clk 0:01:24.4]} 21.
Nb5 {[%clk 0:01:07]} 21... Qb6 {[%clk 0:01:24.2]} 22. Bg2 {[%clk 0:00:33.2]}
22... a4 {[%clk 0:01:20.6]} 23. a3 {[%clk 0:00:31.3]} 23... Rad8 {[%clk
0:01:06.5]} 24. Bxd4 {[%clk 0:00:31.1]} 24... cxd4 {[%clk 0:01:01.2]} 25. f4
{[%clk 0:00:26.5]} 25... d3+ {[%clk 0:00:55.5]} 26. Qe3 {[%clk 0:00:22.7]} 26...
e4 {[%clk 0:00:54.9]} 27. d6 {[%clk 0:00:09.2]} 27... Qxe3+ {[%clk 0:00:38.9]}
28. Rxe3 {[%clk 0:00:10.1]} 28... Nb6 {[%clk 0:00:39.2]} 29. c5 {[%clk
0:00:10.2]} 29... Nc4 {[%clk 0:00:39.4]} 30. Ree1 {[%clk 0:00:10.7]} 30... Nxb2
{[%clk 0:00:39.5]} 31. Rb1 {[%clk 0:00:09.4]} 31... d2 {[%clk 0:00:39.1]} 32.
Rf1 {[%clk 0:00:05.6]} 32... Nd3 {[%clk 0:00:39]} 33. Nc7 {[%clk 0:00:05.4]}
33... Rf8 {[%clk 0:00:39]} 34. Rfd1 {[%clk 0:00:03.3]} 34... e3 {[%clk
0:00:39.4]} 35. Bf1 {[%clk 0:00:02.6]} 35... Nxc5 {[%clk 0:00:39.5]} 0-1

[Event "*** SCC Grand Prix: Titled Tuesday Blitz"]
[Site "Chess.com"]
[Date "2020.09.08"]
[Round "1"]
[White "NotFischer"]
[Black "aliba25"]
[Result "0-1"]
[WhiteElo "2217"]
[BlackElo "2555"]
[TimeControl "180+1"]
[EndTime "10:06:47 PDT"]
[Termination "aliba25 won on time"]

1. e4 {[%clk 0:03:00.9]} 1... e5 {[%clk 0:02:57.4]} 2. Bc4 {[%clk 0:03:00.6]}
2... Nc6 {[%clk 0:02:57]} 3. Nc3 {[%clk 0:02:59.7]} 3... Nf6 {[%clk 0:02:55.4]}
4. d3 {[%clk 0:02:59.9]} 4... Bc5 {[%clk 0:02:53.6]} 5. f4 {[%clk 0:02:59.5]}
5... d6 {[%clk 0:02:51.2]} 6. Nf3 {[%clk 0:02:59.3]} 6... Ng4 {[%clk 0:02:48]}
7. f5 {[%clk 0:02:58.9]} 7... Nf2 {[%clk 0:02:46.3]} 8. Qe2 {[%clk 0:02:54.1]}
8... Nxh1 {[%clk 0:02:46.3]} 9. Ng5 {[%clk 0:02:54.1]} 9... Qe7 {[%clk
0:02:27.8]} 10. Bxf7+ {[%clk 0:02:20]} 10... Kd8 {[%clk 0:02:22.1]} 11. Nd5
{[%clk 0:02:16.2]} 11... Qf8 {[%clk 0:02:18.6]} 12. Qh5 {[%clk 0:01:32.8]} 12...
h6 {[%clk 0:02:06]} 13. Be6 {[%clk 0:01:20.5]} 13... Bd7 {[%clk 0:01:42.3]} 14.
Nf7+ {[%clk 0:01:11.7]} 14... Kc8 {[%clk 0:01:42]} 15. Bxd7+ {[%clk 0:00:50.2]}
15... Kxd7 {[%clk 0:01:39.1]} 16. Nxh8 {[%clk 0:00:51.1]} 16... Qxh8 {[%clk
0:01:37.7]} 17. Qf7+ {[%clk 0:00:48.3]} 17... Kd8 {[%clk 0:01:35.3]} 18. Nxc7
{[%clk 0:00:22.7]} 18... Kc8 {[%clk 0:01:21.1]} 19. Nxa8 {[%clk 0:00:21.4]}
19... Kb8 {[%clk 0:01:19.7]} 20. Nc7 {[%clk 0:00:18.1]} 20... Qd8 {[%clk
0:01:19.3]} 21. Ne6 {[%clk 0:00:12.6]} 21... Qa5+ {[%clk 0:01:05.4]} 22. c3
{[%clk 0:00:11.8]} 22... a6 {[%clk 0:01:04.6]} 23. Bd2 {[%clk 0:00:07.8]} 23...
Qb6 {[%clk 0:01:02.7]} 24. O-O-O {[%clk 0:00:05.1]} 24... Nf2 {[%clk 0:01:01]}
25. Qe8+ {[%clk 0:00:04.9]} 25... Ka7 {[%clk 0:01:00.8]} 26. Rf1 {[%clk
0:00:04.8]} 26... Nxd3+ {[%clk 0:01:00.5]} 27. Kd1 {[%clk 0:00:04.3]} 27...
Nxb2+ {[%clk 0:00:57.6]} 28. Ke2 {[%clk 0:00:04]} 28... Qb5+ {[%clk 0:00:57.3]}
29. Ke1 {[%clk 0:00:03.9]} 29... Nd3+ {[%clk 0:00:56.8]} 30. Ke2 {[%clk
0:00:04.3]} 30... Nd4+ {[%clk 0:00:56.3]} 31. cxd4 {[%clk 0:00:03.6]} 31... Qxe8
{[%clk 0:00:56]} 32. Kxd3 {[%clk 0:00:03.2]} 32... Qb5+ {[%clk 0:00:53.9]} 33.
Kc2 {[%clk 0:00:02.6]} 33... Qxf1 {[%clk 0:00:54]} 34. dxc5 {[%clk 0:00:03]}
34... dxc5 {[%clk 0:00:53.3]} 35. Nxc5 {[%clk 0:00:02.9]} 35... Qc4+ {[%clk
0:00:52.9]} 0-1

[Event "*** SCC Grand Prix: Titled Tuesday Blitz"]
[Site "Chess.com"]
[Date "2020.09.08"]
[Round "1"]
[White "nitpicker"]
[Black "el-roedor"]
[Result "0-1"]
[WhiteElo "2242"]
[BlackElo "2572"]
[TimeControl "180+1"]
[EndTime "10:06:48 PDT"]
[Termination "el-roedor won by resignation"]

1. d4 {[%clk 0:03:00.9]} 1... Nf6 {[%clk 0:02:59.5]} 2. c4 {[%clk 0:03:00.2]}
2... e6 {[%clk 0:02:59.7]} 3. Nf3 {[%clk 0:02:59.2]} 3... Bb4+ {[%clk
0:02:59.1]} 4. Nbd2 {[%clk 0:02:58.2]} 4... O-O {[%clk 0:02:58.4]} 5. e3 {[%clk
0:02:58.4]} 5... b6 {[%clk 0:02:55.3]} 6. a3 {[%clk 0:02:58.1]} 6... Be7 {[%clk
0:02:53.5]} 7. b4 {[%clk 0:02:58]} 7... Bb7 {[%clk 0:02:51.6]} 8. Bb2 {[%clk
0:02:58.1]} 8... d5 {[%clk 0:02:50.6]} 9. Bd3 {[%clk 0:02:54.4]} 9... Nbd7
{[%clk 0:02:45.3]} 10. O-O {[%clk 0:02:53.2]} 10... c5 {[%clk 0:02:38.9]} 11. b5
{[%clk 0:02:52.6]} 11... Rc8 {[%clk 0:02:21]} 12. Qe2 {[%clk 0:02:51.6]} 12...
cxd4 {[%clk 0:02:15.3]} 13. Nxd4 {[%clk 0:02:32.2]} 13... Nc5 {[%clk 0:02:03]}
14. Bc2 {[%clk 0:02:24.9]} 14... dxc4 {[%clk 0:01:51.8]} 15. Nxc4 {[%clk
0:02:23.5]} 15... Qd5 {[%clk 0:01:33.9]} 16. f3 {[%clk 0:02:22.8]} 16... Rfd8
{[%clk 0:01:00.7]} 17. Rfd1 {[%clk 0:02:22.5]} 17... Qh5 {[%clk 0:01:00.3]} 18.
a4 {[%clk 0:02:00]} 18... Bd5 {[%clk 0:00:48.6]} 19. a5 {[%clk 0:01:43]} 19...
Bxc4 {[%clk 0:00:47.3]} 20. Qxc4 {[%clk 0:01:42.1]} 20... Bd6 {[%clk 0:00:47.2]}
21. g3 {[%clk 0:01:26.1]} 21... Qh6 {[%clk 0:00:18.4]} 22. Qe2 {[%clk 0:01:20]}
22... Be5 {[%clk 0:00:15]} 23. axb6 {[%clk 0:01:07.1]} 23... axb6 {[%clk
0:00:14.4]} 24. Ra6 {[%clk 0:01:03.2]} 24... Bxd4 {[%clk 0:00:13.5]} 25. Bxd4
{[%clk 0:00:56.3]} 25... Nxa6 {[%clk 0:00:13.7]} 26. bxa6 {[%clk 0:00:55.5]}
26... Nd5 {[%clk 0:00:13.5]} 27. Bd3 {[%clk 0:00:41.4]} 27... g6 {[%clk
0:00:10.1]} 28. Bb5 {[%clk 0:00:38.7]} 28... Nc3 {[%clk 0:00:09.3]} 29. Bxc3
{[%clk 0:00:31.2]} 29... Rxd1+ {[%clk 0:00:10.2]} 30. Qxd1 {[%clk 0:00:31.1]}
30... Qxe3+ {[%clk 0:00:10.5]} 31. Kg2 {[%clk 0:00:31.8]} 31... Qxc3 {[%clk
0:00:10.6]} 32. a7 {[%clk 0:00:32.1]} 32... Qb2+ {[%clk 0:00:10.2]} 33. Qe2
{[%clk 0:00:31.4]} 33... Qxe2+ {[%clk 0:00:10.4]} 34. Bxe2 {[%clk 0:00:31.5]}
34... Ra8 {[%clk 0:00:11]} 35. Bb5 {[%clk 0:00:32.2]} 35... Rxa7 {[%clk
0:00:11.5]} 36. Kf2 {[%clk 0:00:32.7]} 36... Kf8 {[%clk 0:00:12]} 37. Ke3 {[%clk
0:00:33.1]} 37... Ke7 {[%clk 0:00:12.5]} 38. h4 {[%clk 0:00:33.1]} 38... Kd6
{[%clk 0:00:13]} 39. Bd3 {[%clk 0:00:33.5]} 39... h6 {[%clk 0:00:13.3]} 0-1